bitfinex/quotes_BTCUSD_20251019
["timestamp","ask_amount","ask_price","bid_price","bid_amount"]
[1760857872649,5.39434914,107060.0,107040.0,0.03618228]
[1760857872858,5.0,107050.0,107040.0,0.12994228]
[1760857873094,5.0,107050.0,107030.0,0.00146935]
[1760857873095,0.34,107050.0,107030.0,0.00146935]
[1760857873312,0.34,107050.0,107040.0,0.12994228]
[1760857875443,0.36809921,107050.0,107040.0,0.12994228]
[1760857876730,5.36972762,107050.0,107040.0,0.09376]
[1760857878642,5.0,107040.0,107030.0,0.13141163]
[1760857878846,0.36972762,107050.0,107030.0,0.13150484]
[1760857879057,5.0,107040.0,107030.0,0.13150484]
[1760857881843,5.01465434,107040.0,107030.0,0.13150484]
[1760857882061,0.01465434,107040.0,107030.0,0.13150484]
[1760857882277,0.01465434,107040.0,107030.0,0.31836833]
[1760857883138,0.01465434,107040.0,107030.0,0.13150484]
[1760857883375,0.01465434,107040.0,107030.0,0.1447836]
[1760857883582,0.01465434,107040.0,107030.0,0.0510236]
[1760857883794,0.01465434,107040.0,107030.0,0.1447836]
[1760857884903,0.36972762,107050.0,107040.0,0.03618228]
[1760857885111,0.34162841,107050.0,107040.0,0.03618228]
[1760857906679,0.34162841,107050.0,107040.0,0.12994228]
[1760857907753,0.35628215,107050.0,107040.0,0.12994228]
[1760857911636,5.35628215,107050.0,107040.0,0.12994228]
[1760857914815,5.34162841,107050.0,107040.0,0.12994228]
[1760857917421,0.34162841,107050.0,107040.0,0.12994228]
[1760857917634,0.34162841,107050.0,107040.0,0.14202356]
[1760857917871,0.35628153,107050.0,107040.0,0.14202356]
[1760857919407,0.35628153,107050.0,107040.0,0.12994228]
[1760857924717,0.34162841,107050.0,107040.0,0.12994228]
[1760857927994,0.35628141,107050.0,107040.0,0.12994228]
[1760857934834,0.34162841,107050.0,107040.0,0.12994228]
[1760857935253,0.36972657,107050.0,107040.0,0.12994228]
[1760857937823,0.38437957,107050.0,107040.0,0.12994228]
[1760857948277,0.36972657,107050.0,107040.0,0.12994228]
[1760857952648,0.02972657,107050.0,107040.0,0.12994228]
[1760857963457,0.36972657,107050.0,107040.0,0.12994228]
[1760857969514,0.38437973,107050.0,107040.0,0.12994228]
[1760857970092,0.04437973,107050.0,107040.0,0.12994228]
[1760857970306,0.38437973,107050.0,107040.0,0.12994228]
[1760857970478,0.38437973,107050.0,107040.0,0.14862688]
[1760857976888,0.36972657,107050.0,107040.0,0.14862688]
[1760857978928,0.18531383,107050.0,107040.0,0.14862688]
[1760857979140,0.02972643,107050.0,107040.0,0.14862688]
[1760857979547,0.02809816,107050.0,107040.0,0.14862688]
[1760857982061,0.55272125,107060.0,107050.0,0.22301086]
[1760857982062,0.05434947,107060.0,107050.0,0.22301086]
[1760857982279,0.05434947,107060.0,107050.0,0.03618228]
[1760857982500,0.03969647,107060.0,107050.0,0.22301086]
[1760857982721,0.00162822,107060.0,107050.0,0.03618228]
[1760857982920,0.00162822,107060.0,107050.0,0.06427631]
[1760857983134,0.00162822,107060.0,107050.0,0.25110489]
[1760857988049,0.00162822,107060.0,107050.0,0.69933354]
[1760857988266,0.01627883,107060.0,107050.0,0.69933354]
[1760857988692,0.01627883,107060.0,107050.0,0.25110489]
[1760857995463,0.00162822,107060.0,107050.0,0.25110489]
[1760857999700,0.01627849,107060.0,107050.0,0.25110489]
[1760858003128,0.00162822,107060.0,107050.0,0.25110489]
[1760858009345,0.01627859,107060.0,107050.0,0.25110489]
[1760858016198,0.01627859,107060.0,107050.0,0.03618228]
[1760858017474,0.01627859,107060.0,107050.0,0.24169371]
[1760858017676,0.01627859,107060.0,107050.0,0.22301086]
[1760858018487,0.01627859,107060.0,107050.0,0.31669086]
[1760858019228,0.01627859,107060.0,107050.0,0.12986228]
[1760858019847,0.01627859,107060.0,107050.0,0.03618228]
[1760858020030,0.01627859,107060.0,107050.0,0.12986228]
[1760858021066,0.01627859,107060.0,107050.0,0.14854513]
[1760858022338,0.01627859,107060.0,107050.0,0.33537371]
[1760858022540,0.01627859,107060.0,107050.0,0.31669086]
[1760858022741,0.01627859,107060.0,107050.0,0.12986228]
[1760858022947,0.01627859,107060.0,107050.0,0.33537371]
[1760858023155,0.01627859,107060.0,107050.0,0.31669086]
[1760858024243,0.01627859,107060.0,107050.0,0.22301086]
[1760858024457,0.01627859,107060.0,107050.0,0.31669086]
[1760858024830,0.01627859,107060.0,107050.0,0.12986228]
[1760858025053,0.01627859,107060.0,107050.0,0.14854513]
[1760858025254,0.01627859,107060.0,107050.0,0.33537371]
[1760858025462,0.01627859,107060.0,107050.0,0.31669086]
[1760858033459,0.01627859,107060.0,107050.0,0.12986228]
[1760858033658,0.01627859,107060.0,107050.0,0.14854513]
[1760858035641,0.01627859,107060.0,107050.0,0.33537371]
[1760858035855,0.01627859,107060.0,107050.0,0.31669086]
[1760858041154,0.00162822,107060.0,107050.0,0.31669086]
[1760858046506,0.00162822,107060.0,107050.0,0.12986228]
[1760858046710,0.00162822,107060.0,107050.0,0.14854513]
[1760858047048,0.00162822,107060.0,107050.0,0.33537371]
[1760858047235,0.00162822,107060.0,107050.0,0.31669086]
[1760858047444,0.00162822,107060.0,107050.0,0.12986228]
[1760858047657,0.00162822,107060.0,107050.0,0.14854513]
[1760858048582,0.00162822,107060.0,107050.0,0.33537371]
[1760858048785,0.00162822,107060.0,107050.0,0.31669086]
[1760858049003,0.00162822,107060.0,107050.0,0.12986228]
[1760858049202,0.00162822,107060.0,107050.0,0.14854513]
[1760858050054,0.00162822,107060.0,107050.0,0.33537371]
[1760858050239,0.00162822,107060.0,107050.0,0.31669086]
[1760858051967,0.00162822,107060.0,107050.0,0.12986228]
[1760858052118,0.00162822,107060.0,107050.0,0.14854513]
[1760858052348,0.00162822,107060.0,107050.0,0.12986228]
[1760858052518,0.00162822,107060.0,107050.0,0.14854513]
[1760858052715,5.0,107070.0,107060.0,0.03618228]
[1760858053500,0.00162806,107070.0,107060.0,0.03618228]
[1760858053716,5.0,107070.0,107060.0,0.03618228]
[1760858054096,4.80114431,107070.0,107060.0,0.03618228]
[1760858054275,5.0,107070.0,107060.0,0.03618228]
[1760858055687,0.02809271,107070.0,107060.0,0.12986228]
[1760858056107,0.02972078,107070.0,107060.0,0.12986228]
[1760858059913,0.02972078,107070.0,107060.0,0.14854339]
[1760858060333,0.02809271,107070.0,107060.0,0.14854339]
[1760858060579,0.04274365,107070.0,107060.0,0.14854339]
[1760858060809,0.04437169,107070.0,107060.0,0.14854339]
[1760858061442,0.01627898,107070.0,107060.0,0.33535452]
[1760858061711,5.0,107070.0,107060.0,0.31667341]
[1760858062151,4.81211003,107070.0,107060.0,0.34476344]
[1760858062361,5.0,107070.0,107060.0,0.34476344]
[1760858062573,5.0,107070.0,107060.0,0.31667341]
[1760858062793,5.0,107070.0,107060.0,0.34476344]
[1760858063240,5.0,107070.0,107060.0,0.31667341]
[1760858064530,5.00162795,107070.0,107060.0,0.31667341]
[1760858064754,0.00162795,107070.0,107060.0,0.31667341]
[1760858064897,0.01627805,107070.0,107060.0,0.31667341]
[1760858065125,0.00162795,107070.0,107060.0,0.31667341]
[1760858066156,0.00162795,107070.0,107060.0,0.34476344]
[1760858068072,0.3404,107090.0,107060.0,0.34476344]
[1760858068073,0.5004,107090.0,107080.0,0.03618228]
[1760858068301,5.03011581,107090.0,107080.0,0.12986228]
[1760858069471,5.03025554,107090.0,107080.0,0.12986228]
[1760858071235,5.05436027,107090.0,107080.0,0.12986228]
[1760858071441,5.05273244,107090.0,107080.0,0.12986228]
[1760858072455,0.05273244,107090.0,107080.0,0.1485399]
[1760858072678,0.05273244,107090.0,107080.0,0.33531614]
[1760858072896,0.05436018,107090.0,107080.0,0.31663852]
[1760858073739,0.05507719,107090.0,107080.0,0.31663852]
[1760858074167,0.03097246,107090.0,107080.0,0.31663852]
[1760858075239,0.03097246,107090.0,107080.0,0.12986228]
[1760858075460,0.03097246,107090.0,107080.0,0.1485399]
[1760858076030,0.02956946,107090.0,107080.0,0.1485399]
[1760858077035,0.04421736,107090.0,107080.0,0.1485399]
[1760858080796,0.01713238,107090.0,107080.0,0.1485399]
[1760858084216,0.02808561,107100.0,107080.0,0.1485399]
[1760858084450,0.0016277,107090.0,107080.0,0.1485399]
[1760858085118,5.0,107090.0,107080.0,0.1485399]
[1760858087614,5.00162768,107090.0,107080.0,0.1485399]
[1760858087858,0.00162768,107090.0,107080.0,0.1485399]
[1760858089172,0.01627524,107090.0,107080.0,0.1485399]
[1760858098878,0.00162768,107090.0,107080.0,0.1485399]
[1760858101822,0.00162768,107090.0,107080.0,0.0548599]
[1760858102023,0.00162768,107090.0,107080.0,0.1485399]
[1760858102937,0.00162768,107090.0,107080.0,0.33531614]
[1760858103162,0.00162768,107090.0,107080.0,0.31663852]
[1760858103791,0.00162768,107090.0,107080.0,0.34472255]
[1760858104629,0.00162768,107090.0,107080.0,0.7929512]
[1760858105470,0.00162768,107090.0,107080.0,0.34472255]
[1760858115536,0.00162768,107090.0,107080.0,0.31663852]
[1760858117221,0.00162768,107090.0,107080.0,0.85927805]
[1760858117420,0.00162768,107090.0,107080.0,0.4110494]
[1760858117831,0.00162768,107090.0,107080.0,0.85927805]
[1760858118245,0.00162768,107090.0,107080.0,0.4110494]
[1760858122338,0.01627437,107090.0,107080.0,0.4110494]
[1760858122552,0.01627437,107090.0,107080.0,0.85927805]
[1760858123409,0.01627437,107090.0,107080.0,0.4110494]
[1760858123614,0.01627437,107090.0,107080.0,0.85927805]
[1760858125173,0.01627437,107090.0,107080.0,0.4110494]
[1760858130828,0.00162768,107090.0,107080.0,1.19927805]
[1760858131027,0.0004,107110.0,107100.0,0.03618228]
[1760858131173,0.00202745,107110.0,107100.0,0.14849641]
[1760858131405,0.00274427,107110.0,107100.0,0.14849641]
[1760858131613,0.00111682,107110.0,107100.0,0.33523777]
[1760858131808,0.00111682,107110.0,107100.0,0.31656364]
[1760858133993,0.00274429,107110.0,107100.0,0.31656364]
[1760858137292,0.00274429,107110.0,107100.0,0.12982228]
[1760858137509,0.00274429,107110.0,107100.0,0.14849641]
[1760858138199,0.00274429,107110.0,107100.0,0.33523777]
[1760858138411,0.00274429,107110.0,107100.0,0.31656364]
[1760858141359,0.0173886,107110.0,107100.0,0.31656364]
[1760858144224,0.0173886,107110.0,107100.0,0.35513446]
[1760858144442,0.0173886,107110.0,107100.0,0.31656364]
[1760858147075,0.00274429,107110.0,107100.0,0.31656364]
[1760858148326,0.00274429,107110.0,107100.0,0.34464144]
[1760858150403,0.00274429,107110.0,107100.0,0.43905232]
[1760858151262,0.01738769,107110.0,107100.0,0.43905232]
[1760858158032,5.0,107130.0,107120.0,0.03618228]
[1760858158234,5.00014955,107130.0,107120.0,0.14403383]
[1760858158491,5.00177684,107130.0,107120.0,0.14403383]
[1760858158689,5.00249345,107130.0,107120.0,0.14403383]
[1760858158851,5.00086616,107130.0,107120.0,0.14403383]
[1760858160133,0.00086616,107130.0,107120.0,0.14403383]
[1760858161063,0.03955618,107130.0,107120.0,0.14403383]
[1760858161275,0.00249337,107130.0,107120.0,0.14403383]
[1760858163027,0.00086616,107130.0,107120.0,0.14403383]
[1760858163239,0.03807848,107130.0,107120.0,0.14403383]
[1760858166659,0.03970569,107130.0,107120.0,0.14403383]
[1760858191036,0.03970569,107130.0,107120.0,0.14367645]
[1760858196394,0.01464258,107140.0,107120.0,0.14367645]
[1760858196598,5.0016271,107130.0,107120.0,0.14367645]
[1760858196802,0.0016271,107130.0,107120.0,0.14367645]
[1760858197224,5.0,107130.0,107120.0,0.14367645]
[1760858198894,5.03850009,107130.0,107120.0,0.14367645]
[1760858199102,0.03850009,107130.0,107120.0,0.14367645]
[1760858199517,5.0,107130.0,107120.0,0.14367645]
[1760858199668,5.0016271,107130.0,107120.0,0.14367645]
[1760858199881,0.0016271,107130.0,107120.0,0.14367645]
[1760858201483,5.0,107130.0,107120.0,0.14367645]
[1760858202977,0.03871662,107130.0,107120.0,0.14367645]
[1760858203456,5.0,107130.0,107120.0,0.14367645]
[1760858204413,5.0016271,107130.0,107120.0,0.14367645]
[1760858204746,0.0016271,107130.0,107120.0,0.14367645]
[1760858207866,0.0398119,107130.0,107120.0,0.14367645]
[1760858208482,0.0398119,107130.0,107120.0,0.33038294]
[1760858208677,0.0398119,107130.0,107120.0,0.31617139]
[1760858208885,0.0016271,107130.0,107120.0,0.31617139]
[1760858210068,0.0016271,107130.0,107120.0,0.34424373]
[1760858212877,0.01626925,107130.0,107120.0,0.34424373]
[1760858218433,0.01626925,107130.0,107120.0,0.43865461]
[1760858218639,0.01626925,107130.0,107120.0,0.15753724]
[1760858218851,0.01626925,107130.0,107120.0,0.14809554]
[1760858219693,0.0016271,107130.0,107120.0,0.33480203]
[1760858219854,0.0016271,107130.0,107120.0,0.1294249]
[1760858220087,0.03857607,107140.0,107120.0,0.14809554]
[1760858220300,0.03857607,107140.0,107120.0,0.33480164]
[1760858220441,5.0,107140.0,107120.0,0.316131]
[1760858220640,5.0,107140.0,107130.0,0.05485118]
[1760858221060,0.00035824,107140.0,107130.0,0.05485118]
[1760858221623,0.00035824,107140.0,107130.0,0.03618228]
[1760858223454,0.03800295,107140.0,107130.0,0.03618228]
[1760858224281,0.03800295,107140.0,107130.0,0.05485118]
[1760858233041,0.03962995,107140.0,107130.0,0.05485118]
[1760858242360,0.03800295,107140.0,107130.0,0.05485118]
[1760858245523,0.03962995,107140.0,107130.0,0.05485118]
[1760858247837,0.05427186,107140.0,107130.0,0.05485118]
[1760858249143,0.03962995,107140.0,107130.0,0.05485118]
[1760858254140,0.0280741,107150.0,107130.0,0.05485118]
[1760858254348,5.00162699,107140.0,107130.0,0.05485118]
[1760858254546,0.00162699,107140.0,107130.0,0.14845118]
[1760858254909,5.0,107140.0,107130.0,0.14845118]
[1760858255778,0.03847653,107140.0,107130.0,0.14845118]
[1760858256078,5.0,107140.0,107130.0,0.14845118]
[1760858257461,0.00162699,107140.0,107130.0,0.14845118]
[1760858258071,0.03998198,107140.0,107130.0,0.14845118]
[1760858260284,0.05462389,107140.0,107130.0,0.14845118]
[1760858260689,0.03998198,107140.0,107130.0,0.14845118]
[1760858261733,0.03835499,107140.0,107130.0,0.14845118]
[1760858261947,0.00162699,107140.0,107130.0,0.14845118]
[1760858262325,5.0,107140.0,107130.0,0.14845118]
[1760858264741,0.00162699,107140.0,107130.0,0.14845118]
[1760858265786,0.03917674,107140.0,107130.0,0.14845118]
[1760858266958,0.05381865,107140.0,107130.0,0.14845118]
[1760858274484,0.05381865,107140.0,107130.0,0.03618228]
[1760858274707,0.08189275,107140.0,107130.0,0.12978228]
[1760858276075,0.08026576,107140.0,107130.0,0.12978228]
[1760858278515,0.08189277,107140.0,107130.0,0.12978228]
[1760858278760,0.08189277,107140.0,107130.0,0.0936]
[1760858278936,0.08189277,107140.0,107110.0,0.01658422]
[1760858278937,5.0,107130.0,107110.0,0.01658422]
[1760858279143,5.0,107130.0,107120.0,0.0936]
[1760858279315,5.0,107130.0,107120.0,0.12978228]
[1760858279515,5.02807717,107130.0,107120.0,0.0936]
[1760858279765,0.02807717,107130.0,107120.0,0.0936]
[1760858279984,0.02807717,107130.0,107120.0,0.12978228]
[1760858280529,0.02807717,107130.0,107120.0,0.0936]
[1760858280734,5.0,107120.0,107110.0,0.03633183]
[1760858280936,5.0,107120.0,107110.0,0.12993183]
[1760858281250,5.0,107130.0,107110.0,0.12993183]
[1760858281453,0.0297049,107120.0,107110.0,0.12993183]
[1760858282675,5.0297049,107120.0,107110.0,0.00014955]
[1760858282915,5.3697049,107120.0,107110.0,0.09374955]
[1760858283133,5.3697049,107120.0,107110.0,0.00014955]
[1760858283748,5.38435099,107120.0,107110.0,0.00014955]
[1760858286417,0.35464609,107120.0,107110.0,0.00014955]
[1760858286723,5.38435581,107120.0,107110.0,0.00014955]
[1760858292281,5.38435581,107120.0,107110.0,0.12997183]
[1760858292486,0.04435581,107120.0,107110.0,0.12997183]
[1760858292686,0.01627346,107120.0,107110.0,0.14711855]
[1760858292888,0.00162737,107120.0,107110.0,0.14711855]
[1760858293402,0.00162737,107120.0,107110.0,0.33384247]
[1760858293586,0.00162737,107120.0,107110.0,0.85933528]
[1760858293827,0.00162737,107120.0,107110.0,0.88740843]
[1760858294040,0.00162737,107120.0,107110.0,0.92550869]
[1760858294257,0.03823705,107140.0,107130.0,0.03618228]
[1760858294480,5.0,107140.0,107130.0,0.14691356]
[1760858294684,0.03882981,107140.0,107130.0,0.14691356]
[1760858295094,5.0,107140.0,107130.0,0.14691356]
[1760858295302,5.0,107140.0,107130.0,0.12982228]
[1760858296681,0.05249323,107140.0,107130.0,0.12982228]
[1760858296917,0.05412022,107140.0,107130.0,0.12982228]
[1760858297554,0.39312699,107160.0,107130.0,0.12982228]
[1760858297764,5.0,107150.0,107130.0,0.12982228]
[1760858299387,5.0,107150.0,107130.0,0.14849118]
[1760858299588,5.0,107140.0,107130.0,0.14849118]
[1760858299790,5.0,107140.0,107130.0,0.12982228]
[1760858300534,0.00162698,107140.0,107130.0,0.12982228]
[1760858300653,0.00162698,107140.0,107130.0,0.14849118]
[1760858304210,0.00162698,107140.0,107130.0,0.12982228]
[1760858305410,0.00162698,107140.0,107130.0,0.09364]
[1760858315272,0.00162698,107140.0,107120.0,0.12982228]
[1760858315619,5.0,107130.0,107120.0,0.12982228]
[1760858318258,0.0146433,107130.0,107120.0,0.09364]
[1760858327793,5.0,107140.0,107120.0,0.09364]
[1760858328125,0.01627026,107130.0,107120.0,0.09364]
[1760858331245,0.0016271,107130.0,107120.0,0.09364]
[1760858335956,0.0016271,107130.0,107120.0,0.12982228]
[1760858336185,0.0016271,107130.0,107120.0,0.14848866]
[1760858337576,0.0016271,107130.0,107120.0,0.12982228]
[1760858342103,0.0016271,107130.0,107120.0,0.14640553]
[1760858348357,0.0016271,107130.0,107120.0,0.12982228]
[1760858352030,0.0016271,107130.0,107110.0,0.01675931]
[1760858352160,0.0016271,107130.0,107120.0,0.09364]
[1760858353294,0.0016271,107130.0,107120.0,0.13194]
[1760858357974,0.0016271,107130.0,107120.0,0.0383]
[1760858358172,5.0016271,107130.0,107120.0,0.0383]
[1760858358374,5.02970653,107130.0,107120.0,0.0383]
[1760858359227,5.02970653,107130.0,107120.0,0.03667278]
[1760858359821,5.21476849,107130.0,107120.0,0.03667278]
[1760858362170,5.21639571,107130.0,107120.0,0.03667278]
[1760858363780,5.55476849,107130.0,107120.0,0.03667278]
[1760858363984,5.57228689,107130.0,107120.0,0.03667278]
[1760858364391,5.57228199,107130.0,107120.0,0.03667278]
[1760858366183,5.57390933,107130.0,107120.0,0.03667278]
[1760858367253,5.57389968,107130.0,107120.0,0.03667278]
[1760858367779,5.55639583,107130.0,107120.0,0.03667278]
[1760858371926,5.55476849,107130.0,107120.0,0.03667278]
[1760858374524,5.5563959,107130.0,107120.0,0.03667278]
[1760858378268,5.57389435,107130.0,107120.0,0.03667278]
[1760858379313,5.57389561,107130.0,107120.0,0.03667278]
[1760858381347,5.5722682,107130.0,107120.0,0.03667278]
[1760858384323,5.57390472,107130.0,107120.0,0.03667278]
[1760858392513,5.57227729,107130.0,107120.0,0.03667278]
[1760858394260,5.57230751,107130.0,107120.0,0.03667278]
[1760858394681,5.38561845,107130.0,107120.0,0.03667278]
[1760858394919,5.57230751,107130.0,107120.0,0.03667278]
[1760858395095,5.38561845,107130.0,107120.0,0.03667278]
[1760858395350,5.57393488,107130.0,107120.0,0.03667278]
[1760858400806,5.57230751,107130.0,107120.0,0.03667278]
[1760858401935,5.37857762,107130.0,107120.0,0.03667278]
[1760858404236,5.38020508,107130.0,107120.0,0.03667278]
[1760858406410,5.19702757,107130.0,107120.0,0.03667278]
[1760858408636,5.44012757,107130.0,107120.0,0.03667278]
[1760858413570,5.46935104,107130.0,107120.0,0.03667278]
[1760858415668,5.46772358,107130.0,107120.0,0.03667278]
[1760858417903,5.46935116,107130.0,107120.0,0.03667278]
[1760858418704,5.46933379,107130.0,107120.0,0.03667278]
[1760858419473,5.46933379,107130.0,107120.0,0.0350452]
[1760858420499,5.22623379,107130.0,107120.0,0.0350452]
[1760858428693,5.22460621,107130.0,107120.0,0.0350452]
[1760858431128,5.22623386,107130.0,107120.0,0.0350452]
[1760858432450,5.03643212,107130.0,107120.0,0.0350452]
[1760858432886,5.03480447,107130.0,107120.0,0.0350452]
[1760858435706,5.03480447,107130.0,107120.0,0.1034452]
[1760858435963,5.03643216,107130.0,107120.0,0.1034452]
[1760858437199,5.03643401,107130.0,107120.0,0.1034452]
[1760858439963,4.84472532,107130.0,107120.0,0.1034452]
[1760858443649,4.84309763,107130.0,107120.0,0.1034452]
[1760858449757,4.84472535,107130.0,107120.0,0.1034452]
[1760858456324,4.92163268,107130.0,107120.0,0.1034452]
[1760858456536,4.84472535,107130.0,107120.0,0.1034452]
[1760858457595,4.79751426,107120.0,107110.0,0.00014955]
[1760858457725,4.81503563,107120.0,107110.0,0.00014955]
[1760858458144,4.8431275,107120.0,107110.0,0.00014955]
[1760858459799,4.84475538,107120.0,107110.0,0.00014955]
[1760858460241,4.85475536,107120.0,107110.0,0.00014955]
[1760858461656,4.85312748,107120.0,107110.0,0.00014955]
[1760858464621,4.85475539,107120.0,107110.0,0.00014955]
[1760858480133,4.83723402,107120.0,107110.0,0.00014955]
[1760858480341,4.85474216,107120.0,107110.0,0.00014955]
[1760858494455,4.94914858,107120.0,107110.0,0.00014955]
[1760858494661,4.85474216,107120.0,107110.0,0.00014955]
[1760858511640,4.7783082,107110.0,107100.0,0.00146804]
[1760858511850,4.82508962,107110.0,107100.0,0.00146804]
[1760858512268,4.85318493,107110.0,107100.0,0.00146804]
[1760858513079,4.94759135,107110.0,107100.0,0.00146804]
[1760858513692,4.85318493,107110.0,107100.0,0.00146804]
[1760858514640,4.72728967,107110.0,107040.0,0.00374604]
[1760858514848,0.18681135,107060.0,107030.0,0.03618228]
[1760858515283,0.21490935,107060.0,107030.0,0.03618228]
[1760858515485,0.21490935,107060.0,107050.0,0.00215144]
[1760858516117,0.22429967,107060.0,107050.0,0.00215144]
[1760858517436,0.22592786,107060.0,107050.0,0.00215144]
[1760858519110,0.03911651,107060.0,107050.0,0.00215144]
[1760858519635,0.02977596,107060.0,107050.0,0.00215144]
[1760858520286,0.06700875,107060.0,107050.0,0.00215144]
[1760858520653,0.06538056,107060.0,107050.0,0.00215144]
[1760858523588,0.06700874,107060.0,107050.0,0.00215144]
[1760858525117,0.41514202,107070.0,107050.0,0.00215144]
[1760858525321,5.0,107060.0,107050.0,0.00013973]
[1760858525450,0.00162818,107060.0,107050.0,0.00013973]
[1760858527281,0.03974162,107060.0,107050.0,0.00013973]
[1760858529184,0.4244817,107070.0,107050.0,0.00013973]
[1760858529185,0.27926174,107070.0,107050.0,0.00013973]
[1760858529409,5.00162817,107060.0,107050.0,0.00013973]
[1760858529619,0.00162817,107060.0,107050.0,0.00013973]
[1760858530014,0.04028527,107060.0,107050.0,0.00013973]
[1760858533088,0.0386571,107060.0,107050.0,0.00013973]
[1760858533493,5.0,107060.0,107050.0,0.00229117]
[1760858534628,5.03747473,107060.0,107050.0,0.00229117]
[1760858534790,0.03747473,107060.0,107050.0,0.00229117]
[1760858535037,0.19616385,107070.0,107050.0,0.00229117]
[1760858535235,5.0,107060.0,107050.0,0.00013973]
[1760858536403,5.0,107060.0,107050.0,0.04977738]
[1760858536762,5.0,107060.0,107050.0,0.07787196]
[1760858537166,0.03771045,107060.0,107050.0,0.07787196]
[1760858537499,0.50162817,107070.0,107050.0,0.07787196]
[1760858537710,5.0,107060.0,107050.0,0.07787196]
[1760858539988,5.0383524,107060.0,107050.0,0.07787196]
[1760858540200,0.0383524,107060.0,107050.0,0.07787196]
[1760858540385,0.50162817,107070.0,107060.0,0.00179268]
[1760858540580,5.50162817,107070.0,107060.0,0.00179268]
[1760858540786,5.00162817,107070.0,107060.0,0.00179268]
[1760858542725,5.0,107070.0,107060.0,0.00179268]
[1760858543236,5.00162812,107070.0,107060.0,0.00179268]
[1760858543416,5.0,107070.0,107060.0,0.00179268]
[1760858543608,5.03833339,107070.0,107060.0,0.00179268]
[1760858545639,5.03996151,107070.0,107060.0,0.00179268]
[1760858563770,4.8597412,107070.0,107060.0,0.00179268]
[1760858563972,5.03996151,107070.0,107060.0,0.00179268]
[1760858566417,5.03986811,107070.0,107060.0,0.00179268]
[1760858583874,5.22666179,107070.0,107060.0,0.00179268]
[1760858584120,5.24420802,107070.0,107060.0,0.00179268]
[1760858584267,5.24420704,107070.0,107060.0,0.00179268]
[1760858584678,5.24257892,107070.0,107060.0,0.00179268]
[1760858585086,5.27067584,107070.0,107060.0,0.00179268]
[1760858586706,5.27067093,107070.0,107060.0,0.00179268]
[1760858587209,5.27229917,107070.0,107060.0,0.00179268]
[1760858588445,5.22666191,107070.0,107060.0,0.00179268]
[1760858589907,5.24419906,107070.0,107060.0,0.00179268]
[1760858590366,5.06147954,107070.0,107060.0,0.00179268]
[1760858590560,0.20595907,107070.0,107060.0,0.00179268]
[1760858590758,5.20595907,107070.0,107060.0,0.00179268]
[1760858591854,5.24489381,107070.0,107060.0,0.00179268]
[1760858593163,5.22735666,107070.0,107060.0,0.00179268]
[1760858596542,5.24488974,107070.0,107060.0,0.00179268]
[1760858596909,5.27298803,107070.0,107060.0,0.00179268]
[1760858613770,5.25545495,107070.0,107060.0,0.00179268]
[1760858616262,5.06866127,107070.0,107060.0,0.00179268]
[1760858618883,5.04056298,107070.0,107060.0,0.00179268]
[1760858633976,5.22735666,107070.0,107060.0,0.00179268]
[1760858634521,5.04056298,107070.0,107060.0,0.00179268]
[1760858639223,5.38056298,107070.0,107060.0,0.00179268]
[1760858639623,5.40865761,107070.0,107060.0,0.00179268]
[1760858641228,5.42330963,107070.0,107060.0,0.00179268]
[1760858643968,0.055215,107070.0,107060.0,0.03797496]
[1760858644188,0.055215,107070.0,107060.0,0.08474873]
[1760858644809,0.04056298,107070.0,107060.0,0.08474873]
[1760858646188,0.03893474,107070.0,107060.0,0.08474873]
[1760858646515,5.0,107070.0,107060.0,0.08474873]
[1760858647830,0.01465094,107070.0,107060.0,0.08474873]
[1760858648393,0.016279,107070.0,107060.0,0.08474873]
[1760858650837,0.05521057,107070.0,107060.0,0.08474873]
[1760858665104,0.05521057,107070.0,107060.0,0.05665607]
[1760858670029,0.016279,107070.0,107060.0,0.03797496]
[1760858670331,0.00162806,107070.0,107060.0,0.08418506]
[1760858671711,5.0,107070.0,107060.0,0.08418506]
[1760858671920,0.00162801,107070.0,107060.0,0.08418506]
[1760858672523,5.0,107070.0,107060.0,0.08418506]
[1760858674433,5.03860316,107070.0,107060.0,0.08418506]
[1760858674642,5.0,107070.0,107060.0,0.08418506]
[1760858675361,5.0,107080.0,107060.0,0.08418506]
[1760858675503,0.0390395,107070.0,107060.0,0.08239238]
[1760858675712,0.00162797,107070.0,107060.0,0.17603238]
[1760858676116,0.00162797,107070.0,107060.0,0.17782506]
[1760858678243,0.01627844,107070.0,107060.0,0.17782506]
[1760858685373,0.00162797,107070.0,107060.0,0.17782506]
[1760858686296,0.00162797,107070.0,107060.0,0.36463619]
[1760858686492,0.00134777,107070.0,107060.0,0.34651712]
[1760858687318,0.00134777,107070.0,107060.0,0.440928]
[1760858687863,0.36808792,107100.0,107070.0,0.23230811]
[1760858688101,0.36808792,107100.0,107080.0,0.11231762]
[1760858688102,5.0,107090.0,107080.0,0.11231762]
[1760858688305,0.0016278,107090.0,107080.0,0.11231762]
[1760858688624,5.0,107090.0,107080.0,0.1484999]
[1760858689122,5.0,107090.0,107080.0,0.17658656]
[1760858689683,5.03842255,107090.0,107080.0,0.17658656]
[1760858689892,5.0,107100.0,107080.0,0.17658656]
[1760858690117,5.0,107110.0,107080.0,0.17658656]
[1760858690328,5.0,107100.0,107080.0,0.17658656]
[1760858690738,5.0,107090.0,107080.0,0.17658656]
[1760858691886,0.01464875,107090.0,107080.0,0.17658656]
[1760858694099,0.05247837,107090.0,107080.0,0.17658656]
[1760858694703,0.01464875,107090.0,107080.0,0.17658656]
[1760858694906,0.01627649,107090.0,107080.0,0.17658656]
[1760858704672,0.01627649,107090.0,107080.0,0.3633628]
[1760858704867,0.01627649,107090.0,107080.0,0.34468518]
[1760858709609,0.01627649,107090.0,107080.0,0.15790894]
[1760858709811,0.01627649,107090.0,107080.0,0.17658656]
[1760858710040,0.00162774,107090.0,107080.0,0.17658656]
[1760858713143,0.01627604,107090.0,107080.0,0.17658656]
[1760858714461,0.00162774,107090.0,107080.0,0.17658656]
[1760858717016,0.00162774,107090.0,107080.0,0.15790894]
[1760858717886,0.01627608,107090.0,107080.0,0.15790894]
[1760858719132,0.01627608,107090.0,107080.0,0.17658656]
[1760858722502,0.01627608,107090.0,107080.0,0.15790894]
[1760858724151,0.01627608,107090.0,107080.0,0.06426894]
[1760858724364,0.01627608,107090.0,107080.0,0.15790894]
[1760858724528,0.01627608,107090.0,107080.0,0.12982228]
[1760858724721,0.01627608,107090.0,107080.0,0.1484999]
[1760858731465,0.01627608,107090.0,107080.0,0.0548599]
[1760858731683,0.01627608,107090.0,107080.0,0.1484999]
[1760858735888,5.0,107090.0,107080.0,0.1484999]
[1760858736020,0.00162777,107090.0,107080.0,0.1484999]
[1760858736442,0.04616283,107100.0,107080.0,0.1484999]
[1760858736697,5.0,107090.0,107080.0,0.1484999]
[1760858737048,5.0,107090.0,107080.0,0.12982228]
[1760858740459,5.0,107090.0,107080.0,0.1484999]
[1760858740668,0.01464905,107090.0,107080.0,0.1484999]